bitfinex-derivatives/quotes_ETHF0:USTF0_20240910
["timestamp","ask_amount","ask_price","bid_price","bid_amount"]
[1725945311511,2.23414133,2341.9,2341.8,0.427]
[1725945314717,0.427,2341.8,2341.7,0.8153]
[1725945314924,0.8144,2341.8,2341.7,0.8153]
[1725945315220,0.3874,2341.8,2341.7,0.8153]
[1725945319412,2.23414133,2341.9,2341.8,0.427]
[1725945320222,2.23414133,2341.9,2341.7,0.3883]
[1725945320829,2.66112133,2341.9,2341.7,0.8153]
[1725945321024,2.23414133,2341.9,2341.8,0.427]
[1725945322227,2.66112133,2341.9,2341.7,0.8153]
[1725945323416,2.23414133,2341.9,2341.8,0.427]
[1725945323615,2.66112133,2341.9,2341.7,0.8153]
[1725945324031,2.23414133,2341.9,2341.7,0.3883]
[1725945324827,2.66112133,2341.9,2341.8,0.427]
[1725945325027,2.66112133,2341.9,2341.7,0.8153]
[1725945325833,3.21962698,2341.9,2341.7,0.8153]
[1725945326132,2.79264698,2341.8,2341.7,0.8153]
[1725945331634,2.79264698,2341.9,2341.8,0.427]
[1725945331829,0.42698,2341.9,2341.7,0.8153]
[1725945332037,2.79444251,2341.8,2341.7,0.8153]
[1725945333046,2.23562115,2341.8,2341.7,0.8153]
[1725945333634,4.35531251,2342.0,2341.8,0.427]
[1725945333935,2.23567421,2341.9,2341.8,0.427]
[1725945334639,4.35531251,2342.0,2341.8,0.427]
[1725945334938,2.235745,2341.9,2341.8,0.427]
[1725945335236,0.42698,2341.9,2341.7,0.81531]
[1725945335435,2.23559309,2341.8,2341.7,0.81531]
[1725945340744,2.23559309,2341.9,2341.8,0.427]
[1725945341052,2.79444251,2342.0,2341.9,0.42697]
[1725945341439,5.00349357,2342.2,2341.9,0.42697]
[1725945341741,2.79590645,2342.1,2342.0,0.42695]
[1725945342143,2.79590645,2342.1,2341.9,0.42696]
[1725945342848,3.22284645,2342.1,2341.9,0.42696]
[1725945343942,2.79590645,2342.0,2341.9,0.42696]
[1725945345448,3.18500645,2342.0,2341.9,0.42696]
[1725945348747,3.57920645,2342.0,2341.9,0.42696]
[1725945349535,3.18500645,2342.0,2341.9,0.42696]
[1725945350641,2.79590645,2342.0,2341.9,1.65696]
[1725945350850,2.79590645,2342.0,2341.9,5.92656]
[1725945351045,2.79590645,2342.0,2341.9,6.99401]
[1725945351453,2.79590645,2342.0,2341.9,7.5379516]
[1725945352147,2.79590645,2342.0,2341.9,6.99401]
[1725945352937,2.79590645,2342.0,2341.9,7.5379362]
[1725945353159,2.79590645,2342.0,2341.9,6.99401]
[1725945353351,2.23656293,2342.2,2342.1,0.42694]
[1725945354542,2.61956293,2342.3,2342.2,0.42692]
[1725945354855,2.61885293,2342.3,2342.2,0.42692]
[1725945356351,3.17890645,2342.3,2342.2,0.42692]
[1725945360248,4.40890645,2342.3,2341.8,1.1198194]
[1725945360562,2.23472253,2342.1,2342.0,0.42696]
[1725945361063,2.23472253,2342.1,2342.0,4.69656]
[1725945362257,2.23472253,2342.1,2342.0,4.70854711]
[1725945363260,2.66164253,2342.2,2342.0,4.70854711]
[1725945363561,2.23472253,2342.2,2342.0,0.43894711]
[1725945363757,2.66164253,2342.2,2342.0,0.43894711]
[1725945364360,2.66164253,2342.2,2342.1,0.01198711]
[1725945365559,2.23472253,2342.2,2342.1,0.43892711]
[1725945366658,2.23472253,2342.2,2342.1,0.01198711]
[1725945366659,0.42692,2342.2,2342.1,0.01198711]
[1725945366964,2.23472253,2342.2,2342.1,0.43891711]
[1725945367357,2.61772253,2342.3,2342.1,0.43891711]
[1725945367560,2.61772253,2342.3,2342.2,0.42692]
[1725945367806,2.61772253,2342.3,2342.2,0.81492]
[1725945368259,2.61772253,2342.3,2342.2,0.82690711]
[1725945369162,0.383,2342.3,2342.2,0.82690711]
[1725945370259,2.62892253,2342.4,2342.3,0.4269]
[1725945370661,2.62892253,2342.4,2342.3,4.6965]
[1725945371361,2.62892253,2342.4,2342.3,4.70848711]
[1725945371565,2.99702253,2342.4,2342.3,4.70848711]
[1725945372766,2.99702253,2342.4,2342.3,0.43888711]
[1725945375166,2.99702253,2342.4,2342.3,4.70848711]
[1725945375673,0.7623,2342.4,2342.3,5.93848711]
[1725945375964,2.99702253,2342.4,2342.3,5.93848711]
[1725945376372,0.7623,2342.4,2342.3,5.93848711]
[1725945376575,2.99702253,2342.4,2342.3,5.93848711]
[1725945377185,0.7623,2342.4,2342.3,5.93848711]
[1725945377563,2.99702253,2342.4,2342.3,5.93848711]
[1725945377768,2.99702253,2342.4,2342.3,1.66888711]
[1725945378467,3.55820645,2342.4,2342.3,1.66888711]
[1725945378981,3.55820645,2342.4,2342.3,0.43888711]
[1725945384379,0.7623,2342.4,2342.3,0.43888711]
[1725945384790,3.16376992,2342.4,2342.3,0.81268711]
[1725945384971,3.16376843,2342.4,2342.3,0.81268711]
[1725945385476,0.3681,2342.4,2342.3,0.81268711]
[1725945385880,3.16427202,2342.4,2342.3,0.81268711]
[1725945386474,2.60499722,2342.4,2342.3,0.81268711]
[1725945387176,2.23689722,2342.4,2342.3,0.81268711]
[1725945389182,2.23689722,2342.4,2342.3,2.04268711]
[1725945389385,2.79617202,2342.5,2342.4,0.42689]
[1725945389386,2.23689722,2342.5,2342.4,0.42689]
[1725945389685,2.23689722,2342.5,2342.4,0.82389]
[1725945390276,2.98633567,2342.6,2342.5,0.42687]
[1725945390482,2.98633567,2342.6,2342.5,0.43885711]
[1725945390681,2.98633567,2342.6,2342.5,0.83885711]
[1725945390983,2.98645283,2342.6,2342.5,2.06885711]
[1725945392480,0.7487,2342.6,2342.5,2.06885711]
[1725945393084,0.3785,2342.6,2342.5,2.06885711]
[1725945393379,3.91543801,2342.6,2342.5,7.40483711]
[1725945393586,1.67768518,2342.6,2342.5,7.40483711]
[1725945393883,2.23775283,2342.7,2342.6,0.42685]
[1725945394079,2.23775283,2342.7,2342.6,2.04615]
[1725945394277,2.23775283,2342.7,2342.6,6.31495]
[1725945394578,2.23775283,2342.7,2342.6,6.32693711]
[1725945395586,2.23775283,2342.7,2342.6,7.39406711]
[1725945395775,2.23775283,2342.8,2342.7,1.49392]
[1725945395984,3.15927202,2342.9,2342.8,1.49385]
[1725945395985,2.23775283,2342.9,2342.8,1.49385]
[1725945396208,2.23775283,2343.0,2342.9,0.4268]
[1725945396376,1.67659785,2343.0,2342.9,12.9918]
[1725945396679,0.9504,2343.4,2343.1,0.42676]
[1725945396680,2.23775283,2343.2,2343.1,0.42676]
[1725945396889,2.23775283,2343.2,2343.1,1.65676]
[1725945397071,2.23775283,2343.3,2343.2,0.42674]
[1725945397275,1.67566354,2343.3,2343.2,2.05554]
[1725945397473,1.67566354,2343.3,2343.2,6.32274]
[1725945397691,1.67566354,2343.3,2343.2,6.33472711]
[1725945398283,2.43866354,2343.4,2343.3,0.42672]
[1725945398682,2.43866354,2343.4,2343.3,0.43870711]
[1725945398890,0.763,2343.4,2343.3,0.43870711]
[1725945399083,2.43773518,2343.4,2343.3,0.43870711]
[1725945399877,2.43773518,2343.4,2343.3,0.01198711]
[1725945400079,0.763,2343.4,2343.3,0.01198711]
[1725945400281,2.43653718,2343.4,2343.3,0.01198711]
[1725945400478,0.763,2343.4,2343.3,0.43870711]
[1725945400679,2.43649639,2343.4,2343.3,0.43870711]
[1725945401283,6.6869,2343.4,2343.3,0.01198711]
[1725945401586,6.6869,2343.4,2342.9,0.42679]
[1725945401587,1.06681,2343.3,2342.9,0.42679]
[1725945401781,3.32974136,2343.1,2342.9,0.42679]
[1725945401979,0.3976,2343.0,2342.9,0.4268]
[1725945402185,0.767,2343.0,2342.9,0.4268]
[1725945407994,0.767,2343.0,2342.8,1.65681]
[1725945408290,4.268,2342.9,2342.7,0.42682]
[1725945408497,0.3672,2342.8,2342.7,0.42682]
[1725945409379,0.767,2343.0,2342.9,0.4268]
[1725945409586,1.1446,2343.0,2342.9,0.4268]
[1725945412895,1.1446,2343.0,2342.5,0.4017]
[1725945413078,0.4268,2342.9,2342.8,0.42681]
[1725945413384,1.57139,2343.0,2342.8,0.42681]
[1725945413984,0.4268,2342.9,2342.8,0.42681]
[1725945414191,2.80139,2343.0,2342.8,0.42681]
[1725945415088,0.4268,2342.9,2342.5,1.6317]
[1725945415290,0.4268,2342.9,2342.5,1.23]
[1725945415895,0.4268,2342.9,2342.8,0.42681]
[1725945416287,4.6948,2342.9,2342.8,0.42681]
[1725945416494,6.92542849,2342.9,2342.8,0.42681]
[1725945417295,2.23062849,2342.9,2342.8,1.65681]
[1725945417488,3.37522849,2343.0,2342.9,0.4268]
[1725945419796,2.23062849,2343.0,2342.9,0.4268]
[1725945419993,2.23062849,2343.2,2343.1,0.42676]
[1725945422193,2.60542849,2343.2,2343.1,0.42676]
[1725945423492,0.3748,2343.2,2343.1,0.42676]
[1725945423705,0.80155,2343.2,2343.0,0.82666]
[1725945423890,0.7347,2343.1,2343.0,0.82666]
[1725945425103,0.7347,2343.1,2343.0,0.42678]
[1725945426404,1.16146,2343.1,2343.0,0.42678]
[1725945427800,1.16147,2343.1,2342.9,0.42678]
[1725945427995,3.39209849,2343.1,2343.0,0.42678]
[1725945428592,0.42678,2343.0,2342.7,2.3842]
[1725945428806,2.96532849,2343.1,2342.9,0.4268]
[1725945429003,0.42678,2343.0,2342.9,0.4268]
[1725945429310,3.39209849,2343.1,2342.9,0.4268]
[1725945429700,0.42678,2343.0,2342.9,0.4268]
[1725945430401,0.42678,2343.0,2342.8,0.4268]
[1725945430998,3.39209849,2343.1,2342.9,0.4268]
[1725945431339,3.39209849,2343.1,2342.8,0.4268]
[1725945431500,2.23062849,2342.9,2342.8,0.4268]
[1725945431817,2.23062849,2342.9,2342.8,1.6568]
[1725945432104,2.23062849,2343.0,2342.9,0.4268]
[1725945432300,3.15977202,2343.1,2343.0,0.42678]
[1725945433105,2.79617202,2343.1,2343.0,0.42678]
[1725945433804,2.79617202,2343.2,2343.1,0.42676]
[1725945434008,0.7404,2343.3,2343.1,0.42676]
[1725945434198,0.3746,2343.3,2343.0,1.23]
[1725945434398,7.51956357,2343.6,2343.4,0.4267]
[1725945434704,4.10432417,2343.7,2343.4,1.6567]
[1725945434705,2.79419357,2343.5,2343.4,1.6567]
[1725945435099,2.79419357,2343.5,2343.4,1.23]
[1725945435323,2.79419357,2343.5,2343.1,0.3839]
[1725945435613,2.79419357,2343.2,2343.1,0.3839]
[1725945436016,3.16669357,2343.2,2343.1,0.3839]
[1725945436212,3.59343357,2343.2,2342.8,4.082]
[1725945436396,2.66273823,2343.0,2342.7,0.3839]
[1725945436601,2.23594823,2342.8,2342.3,1.1198194]
[1725945436805,3.55759357,2342.9,2342.5,0.42687]
[1725945436806,2.23594823,2342.6,2342.5,0.42687]
[1725945437117,2.23594823,2342.6,2342.5,1.65687]
[1725945438601,2.23594823,2342.8,2342.5,1.65687]
[1725945439021,2.23594823,2342.8,2342.5,1.23]
[1725945439212,2.23594823,2342.7,2342.5,1.23]
[1725945440718,2.23594823,2342.7,2342.5,1.65687]
[1725945443117,2.23594823,2342.7,2342.6,0.42685]
[1725945443410,2.23594823,2342.8,2342.6,0.42685]
[1725945443647,2.23594823,2342.8,2342.5,1.65686]
[1725945444705,3.94569357,2342.9,2342.7,1.23]
[1725945444905,2.23701201,2342.8,2342.7,1.23]
[1725945445210,2.62511201,2342.9,2342.7,1.65683]
[1725945445403,2.23701201,2342.9,2342.8,1.65681]
[1725945445601,2.79419357,2343.0,2342.9,0.4268]
[1725945445602,2.23701201,2343.0,2342.9,0.4268]
[1725945445801,2.23701201,2343.0,2342.9,0.8161]
[1725945446106,3.56469357,2343.1,2342.9,0.8161]
[1725945446312,3.56469357,2343.1,2343.0,1.23]
[1725945446702,0.7705,2343.1,2343.0,1.23]
[1725945446906,3.56732404,2343.1,2343.0,1.23]
[1725945447115,0.7705,2343.1,2343.0,1.23]
[1725945448517,0.7705,2343.1,2343.0,1.6206]
[1725945449211,0.3789,2343.2,2343.0,2.04738]
[1725945449404,0.3789,2343.2,2343.1,1.65676]
[1725945449710,3.17583184,2343.2,2343.1,1.65676]
[1725945450617,2.79693184,2343.3,2343.2,0.42674]
[1725945450808,2.79693184,2343.4,2343.3,0.42672]
[1725945451146,2.79693184,2343.4,2343.3,1.65672]
[1725945451909,2.79693184,2343.5,2343.4,0.4267]
[1725945452104,2.79693184,2343.5,2343.4,1.5313]
[1725945452313,2.2359965,2343.5,2343.4,1.5313]
[1725945453706,2.6231965,2343.6,2343.5,0.42669]
[1725945456719,0.3872,2343.6,2343.4,0.4267]
[1725945456921,2.62178323,2343.6,2343.4,0.4267]
[1725945457118,2.23458323,2343.5,2343.4,0.4267]
[1725945457424,2.23458323,2343.5,2343.1,3.7971]
[1725945457425,2.62178323,2343.6,2343.5,0.42669]
[1725945457922,2.62178323,2343.6,2343.1,4.86399]
[1725945458109,1.67566454,2343.4,2343.1,4.86399]
[1725945458515,1.67566454,2343.4,2343.3,0.42672]
[1725945459512,1.67566454,2343.4,2343.2,0.42674]
[1725945459713,2.46086454,2343.3,2343.2,0.42674]
[1725945460822,2.46086454,2343.3,2343.1,0.42675]
[1725945461023,2.46068666,2343.3,2343.2,0.42674]
[1725945461313,2.46070343,2343.3,2343.1,0.42675]
[1725945461709,2.46070343,2343.3,2343.2,0.42674]
[1725945461710,0.7852,2343.3,2343.2,0.42674]
[1725945462762,2.07761915,2343.3,2343.2,0.42674]
[1725945464018,0.4021,2343.3,2343.2,0.42674]
[1725945467518,2.07764264,2343.3,2343.2,0.42674]
[1725945471027,2.07764264,2343.3,2343.2,0.81874]
[1725945471232,1.67554264,2343.3,2343.2,5.08594]
[1725945472321,0.3967,2343.6,2343.4,0.42669]
[1725945472518,0.3967,2343.6,2343.5,0.42669]
[1725945475428,0.3967,2343.6,2343.4,0.42669]
[1725945475635,0.3967,2343.6,2343.5,0.42669]
[1725945476027,2.62985033,2343.6,2343.5,0.42669]
[1725945476227,2.62985033,2343.6,2343.5,1.65669]
[1725945478631,3.45892033,2343.6,2343.2,0.392]
[1725945478826,4.26225033,2343.6,2343.1,1.23]
[1725945479026,3.03225033,2343.6,2343.3,0.42672]
[1725945479233,1.23,2343.5,2343.0,1.9814]
[1725945479431,1.23,2343.5,2343.2,0.42673]
[1725945479634,3.03225033,2343.6,2343.2,1.65673]
[1725945479935,3.03225033,2343.6,2343.3,0.42672]
[1725945480142,3.45892033,2343.6,2343.2,1.65673]
[1725945480337,3.03225033,2343.6,2343.2,1.65673]
[1725945480636,3.03225033,2343.6,2343.2,1.23]
[1725945480826,3.03225033,2343.6,2343.3,0.42672]
[1725945481128,1.67468179,2343.4,2343.3,0.42672]
[1725945481729,1.67468179,2343.4,2343.3,1.65672]
[1725945482322,1.67468179,2343.4,2343.3,0.42672]
[1725945483441,1.67468179,2343.5,2343.3,0.42672]
[1725945483927,3.03225033,2343.6,2343.3,0.42672]
[1725945483928,2.23315033,2343.4,2343.3,0.42672]
[1725945485035,2.23315033,2343.5,2343.3,0.42672]
[1725945485225,2.23315033,2343.5,2343.3,0.79192]
[1725945485633,2.23315033,2343.4,2343.3,0.79192]
[1725945488431,3.59053792,2343.6,2343.4,0.4267]
[1725945489543,3.19383792,2343.6,2343.5,1.65669]
[1725945489740,3.17283792,2343.7,2343.6,0.42667]
[1725945489934,2.79143792,2343.7,2343.6,0.42667]
[1725945490143,2.79143792,2343.7,2343.6,0.80737]
[1725945490327,3.16533792,2343.8,2343.7,0.42665]
[1725945490529,0.3739,2343.8,2343.7,2.02355]
[1725945490745,3.16832446,2343.8,2343.7,2.02355]
[1725945490945,2.60938843,2343.8,2343.7,2.02355]
[1725945491238,0.3739,2343.8,2343.7,2.02355]
[1725945491644,2.05053686,2343.8,2343.7,2.02355]
[1725945492232,2.05053686,2343.8,2343.7,0.79355]
[1725945492444,1.67663686,2343.9,2343.8,0.42663]
[1725945493745,1.67663686,2343.9,2343.8,0.80923]
[1725945494451,2.44813686,2344.0,2343.9,0.42661]
[1725945495045,0.3752,2344.0,2343.9,0.42661]
[1725945495253,2.05093118,2344.0,2343.9,0.42661]
[1725945496138,2.05093118,2344.0,2343.9,0.80491]
[1725945496341,1.67573118,2344.1,2344.0,0.42659]
[1725945496647,2.23548843,2344.2,2344.0,0.42659]
[1725945496648,1.67573118,2344.2,2344.1,0.42658]
[1725945496844,1.67573118,2344.2,2344.1,0.79718]
[1725945498150,2.06233118,2344.3,2344.2,0.42656]
[1725945498541,2.06233118,2344.3,2344.0,3.08658]
[1725945498755,1.67573118,2344.2,2343.9,3.4649]
[1725945498945,0.3811,2344.1,2343.9,3.0866]
[1725945499142,0.3678,2344.0,2343.9,3.0866]
[1725945499346,0.7618,2344.0,2343.9,3.0866]
[1725945499851,0.7618,2344.0,2343.9,2.66]
[1725945500055,2.43753118,2344.0,2343.9,0.42661]
[1725945500251,0.7618,2344.0,2343.9,3.08661]
[1725945503660,5.0282,2344.0,2343.7,2.66]
[1725945503851,1.67573118,2343.9,2343.8,0.42663]
[1725945504151,2.43753118,2344.0,2343.8,0.42663]
[1725945504448,1.67573118,2343.9,2343.8,0.42663]
[1725945505341,1.67573118,2343.9,2343.7,3.08664]
[1725945506054,1.67573118,2343.8,2343.7,3.08664]
[1725945507856,1.67573118,2343.9,2343.8,0.42663]
[1725945508058,2.06973118,2344.0,2343.9,0.42661]
[1725945508353,0.394,2344.0,2343.9,0.82521]
[1725945509153,2.61658843,2344.1,2344.0,0.42659]
[1725945509363,2.61658843,2344.1,2343.9,0.3986]
[1725945509556,0.3811,2344.1,2344.0,0.42659]
[1725945509776,2.61289954,2344.1,2344.0,0.42659]
[1725945510559,0.3811,2344.1,2344.0,0.42659]
[1725945512359,3.17552446,2344.1,2344.0,0.42659]
[1725945512664,3.17552446,2344.1,2343.9,0.42661]
[1725945512847,2.79442446,2344.0,2343.9,0.42661]
[1725945514250,2.61461923,2344.1,2344.0,0.42659]
[1725945516559,2.23351923,2344.1,2344.0,0.42659]
[1725945517556,2.98281923,2344.2,2344.1,0.42658]
[1725945517800,0.3633,2344.2,2344.1,0.42658]
[1725945517958,2.59740873,2344.2,2344.1,0.42658]
[1725945518549,0.3633,2344.2,2344.1,0.42658]
[1725945518755,0.3633,2344.2,2344.0,0.42658]
[1725945519057,2.23423776,2344.1,2344.0,0.42658]
[1725945520672,3.58428446,2344.2,2344.1,0.42658]
[1725945521161,0.78986,2344.2,2343.9,2.66]
[1725945521462,2.79324896,2344.0,2343.9,3.08661]
[1725945523858,2.79324896,2344.0,2343.9,0.42661]
[1725945525555,0.42659,2344.1,2343.9,0.42661]
[1725945527077,2.79381071,2344.0,2343.9,0.42661]
[1725945527556,0.42659,2344.1,2344.0,0.42659]
[1725945527955,3.7130255,2344.2,2344.0,1.23]
[1725945528176,0.3633,2344.2,2344.1,0.42658]
[1725945528358,0.3633,2344.2,2344.1,0.80988]
[1725945529160,3.15709119,2344.2,2344.1,0.80988]
[1725945529567,3.58365119,2344.2,2344.1,0.80988]
[1725945530067,7.84925119,2344.2,2344.0,1.23]
[1725945530363,2.79442887,2344.1,2344.0,1.65658]
[1725945534270,0.78986,2344.2,2344.1,0.42658]
[1725945534671,5.05546,2344.2,2344.1,0.42658]
[1725945534865,0.78986,2344.2,2344.1,0.42658]
[1725945536364,4.69787309,2344.2,2344.1,0.42658]
[1725945536567,8.53691309,2344.2,2343.8,1.23]
[1725945536782,0.42663,2343.9,2343.8,0.42663]
[1725945536964,3.78488783,2343.9,2343.7,0.3833]
[1725945537183,1.22473,2343.8,2343.7,0.80994]
[1725945537672,3.35825783,2343.9,2343.3,2.4909575]
[1725945537867,3.35825783,2343.9,2343.7,0.42664]
[1725945537868,3.78487783,2343.9,2343.7,0.42664]
[1725945538067,3.78488783,2343.8,2343.7,1.65664]
[1725945538263,3.35825783,2343.8,2343.7,0.42664]
[1725945538875,3.35825783,2343.8,2343.7,0.79924]
[1725945540172,0.379,2343.9,2343.7,0.79925]
[1725945540173,4.16387783,2343.9,2343.7,0.79925]
[1725945540366,3.35825783,2343.8,2343.7,0.79925]
[1725945540874,4.16387783,2343.9,2343.7,0.79925]
[1725945541875,3.73725783,2343.9,2343.7,0.79925]
[1725945543575,4.71771309,2344.0,2343.9,0.42661]
[1725945543576,3.74135783,2344.0,2343.9,0.42661]
[1725945543767,3.74135783,2344.0,2343.8,2.05152]
[1725945544080,3.74135783,2344.0,2343.9,0.42661]
[1725945544276,0.3831,2344.0,2343.9,0.42661]
[1725945544481,2.62099827,2344.0,2343.9,2.03711]
[1725945544775,2.23789827,2344.0,2343.9,2.03711]
[1725945547075,2.23789827,2344.0,2343.9,1.6105]
[1725945547263,2.23789827,2344.0,2343.9,2.03711]
[1725945547669,1.67835489,2344.0,2343.9,3.15225046]
[1725945548792,1.67835489,2344.0,2343.9,5.05139275]
[1725945549077,1.67835489,2344.1,2344.0,0.42659]
[1725945549263,1.67835489,2344.1,2344.0,2.7731012]
[1725945550376,2.23789827,2344.2,2344.0,1.65659]
[1725945551371,2.23789827,2344.1,2344.0,1.65659]
[1725945552582,2.23789827,2344.2,2344.1,0.42658]
[1725945553074,2.62409827,2344.3,2344.1,0.42658]
[1725945553274,2.23789827,2344.3,2344.2,0.82746]
[1725945554374,2.23789827,2344.3,2344.2,2.05746]
[1725945556974,2.23789827,2344.3,2344.0,1.1165112]
[1725945556975,2.23789827,2344.3,2344.1,1.65657]
[1725945557173,1.67745294,2344.2,2344.1,1.65657]
[1725945559387,2.23789827,2344.2,2344.1,1.23]
[1725945559771,2.23789827,2344.2,2344.1,1.65658]
[1725945559993,2.23789827,2344.2,2343.9,0.3805]
[1725945560290,1.6772515,2344.0,2343.9,2.0371]
[1725945563494,2.8056515,2344.1,2344.0,0.42659]
[1725945565095,1.1284,2344.1,2344.0,0.42659]
[1725945565789,2.80524003,2344.1,2344.0,0.42659]
[1725945566384,1.1284,2344.1,2344.0,0.42659]
[1725945567089,0.3805,2344.1,2344.0,0.42659]
[1725945568599,0.3805,2344.1,2344.0,0.82189]
[1725945569034,0.3977,2344.3,2344.1,0.42657]
[1725945569035,2.07454003,2344.3,2344.1,0.42657]
[1725945569185,2.46024003,2344.3,2344.1,1.65657]
[1725945570399,1.67684003,2344.2,2344.1,1.23]
[1725945570593,1.67684003,2344.2,2344.1,1.65658]
[1725945570787,1.67684003,2344.2,2344.0,0.42659]
[1725945570990,1.67684003,2344.1,2344.0,0.42659]
[1725945573796,2.10342003,2344.1,2343.8,0.80532]
[1725945573994,0.7543,2344.0,2343.9,0.42661]
[1725945574999,0.7543,2344.0,2343.9,1.65661]
[1725945575309,2.06616651,2344.0,2343.9,2.40741]
[1725945576102,1.67676651,2344.0,2343.9,2.40741]
[1725945578594,2.62729827,2344.1,2343.9,2.40741]
[1725945578796,2.62729827,2344.1,2344.0,0.42659]
[1725945579904,2.62729827,2344.1,2343.9,0.7508]
[1725945580191,0.3838,2344.0,2343.9,0.42661]
[1725945580495,2.62169827,2344.0,2343.9,0.42661]
[1725945581293,0.3838,2344.0,2343.9,0.42661]
[1725945581496,2.06066912,2344.0,2343.9,0.42661]
[1725945581898,0.3838,2344.0,2343.9,0.42661]
[1725945582293,2.06066912,2344.0,2343.9,0.42661]
[1725945582999,2.06626912,2344.1,2344.0,0.42659]
[1725945583396,0.3894,2344.1,2343.9,0.4266]
[1725945583605,1.67699371,2344.0,2343.9,0.4266]
[1725945584601,0.3894,2344.1,2344.0,0.42659]
[1725945586002,2.0667917,2344.1,2344.0,0.42659]
[1725945586199,0.3894,2344.1,2344.0,0.42659]
[1725945587902,2.62729827,2344.1,2344.0,0.42659]
[1725945589104,2.62729827,2344.1,2343.8,1.4952112]
[1725945589309,1.67802752,2344.0,2343.9,0.42661]
[1725945589504,2.62729827,2344.1,2343.8,1.4952112]
[1725945589505,2.62729827,2344.1,2344.0,0.42659]
[1725945592894,0.3894,2344.1,2344.0,0.42659]
[1725945594302,0.81598,2344.1,2343.9,0.4266]
[1725945594504,0.81598,2344.1,2343.9,0.42661]
[1725945594505,2.66500604,2344.0,2343.9,0.42661]
[1725945594699,3.18685205,2344.1,2343.8,0.42662]
[1725945594904,2.23863223,2343.9,2343.8,0.42662]
[1725945595101,2.2386124,2343.9,2343.8,0.42663]
[1725945595302,2.6387124,2343.9,2343.8,0.42663]
[1725945595544,3.0653224,2343.9,2343.7,1.5431512]
[1725945595736,2.46409992,2343.8,2343.7,1.5431612]
[1725945596016,2.46409992,2343.8,2343.7,0.42665]
[1725945596017,3.0240124,2343.8,2343.7,0.42665]
[1725945596407,0.7854,2343.8,2343.7,0.42665]
[1725945596610,3.58285205,2343.8,2343.7,0.42665]
[1725945596808,0.7854,2343.8,2343.7,0.42665]
[1725945597724,0.7854,2343.8,2343.7,1.65665]
[1725945598407,3.02288987,2343.8,2343.7,1.65665]
[1725945598604,3.02285291,2343.8,2343.7,1.65665]
[1725945598796,0.7854,2343.8,2343.7,1.65665]
[1725945599020,3.02289712,2343.8,2343.7,1.65665]
[1725945599303,2.23749712,2343.8,2343.7,1.65665]
[1725945601401,1.67800951,2343.8,2343.7,1.80045962]
[1725945601604,1.67800951,2343.8,2343.7,2.22710962]
[1725945602011,1.67800951,2343.8,2343.7,1.65665]
[1725945602807,1.67800951,2343.8,2343.7,8.1061912]
[1725945603015,1.67800951,2343.9,2343.8,0.42663]
[1725945603221,1.67800951,2343.9,2343.8,1.5431412]
[1725945603415,1.67800951,2343.9,2343.8,2.1134368]
[1725945603606,1.67800951,2344.1,2344.0,0.42659]
[1725945604914,1.67800951,2344.1,2344.0,0.79809]
[1725945606911,1.67800951,2344.1,2344.0,1.91402788]
[1725945607904,1.67800951,2344.1,2344.0,7.41042788]
[1725945608313,1.67800951,2344.2,2344.1,0.42658]
[1725945608505,1.67800951,2344.2,2344.1,1.54251788]
[1725945609711,1.67800951,2344.2,2344.1,0.42658]
[1725945610730,1.67800951,2344.2,2344.1,4.69218]
[1725945610907,1.67800951,2344.2,2344.1,5.80811788]
[1725945611110,1.67800951,2344.2,2344.1,6.41851143]
[1725945611310,1.67800951,2344.3,2344.2,0.42656]
[1725945611518,1.67800951,2344.3,2344.2,1.65656]
[1725945611706,2.23749712,2344.3,2344.2,1.65656]
[1725945611914,2.23749712,2344.3,2343.9,1.11593788]
[1725945611915,3.22293012,2344.3,2343.9,1.11593788]
[1725945612104,2.23718436,2344.0,2343.8,1.23]
[1725945612301,2.23718436,2344.0,2343.9,1.03715643]
[1725945612601,0.8028,2344.1,2344.0,0.42659]
[1725945612809,3.59919012,2344.1,2344.0,0.42659]
[1725945613008,0.8028,2344.1,2344.0,0.42659]
[1725945613210,0.8028,2344.1,2344.0,1.65659]
[1725945613409,3.04014291,2344.1,2344.0,1.65659]
[1725945613610,2.79639012,2344.2,2344.1,0.42658]
[1725945613810,2.79639012,2344.2,2344.1,1.19058]
[1725945616422,2.79639012,2344.2,2344.1,0.42658]
[1725945617313,2.79639012,2344.3,2344.2,0.42656]
[1725945618720,2.23707976,2344.3,2344.2,0.42656]
[1725945620425,0.7768,2344.4,2344.1,0.3994]
[1725945620426,3.01387976,2344.4,2344.3,0.42654]
[1725945624521,3.01387976,2344.4,2344.3,1.65654]
[1725945625227,3.01387976,2344.4,2344.3,0.42654]
[1725945625424,8.50947976,2344.4,2344.0,1.11593788]
[1725945625630,1.67720879,2344.1,2344.0,0.42659]
[1725945625821,1.67720879,2344.1,2343.9,1.11593788]
[1725945626016,1.67720879,2344.1,2343.9,0.4266]
[1725945626017,0.7792,2344.0,2343.9,0.4266]
[1725945626614,0.7792,2344.0,2343.9,1.6566]
[1725945626819,2.23707976,2344.1,2344.0,0.42659]
[1725945627825,2.79639012,2344.3,2344.1,0.42658]
[1725945628635,0.3733,2344.2,2344.1,0.42658]
[1725945628926,0.3733,2344.2,2344.1,1.65658]
[1725945629229,2.23632581,2344.2,2344.1,1.65658]
[1725945629432,2.23632581,2344.3,2344.2,0.42656]
[1725945629622,2.23632581,2344.3,2344.2,1.65656]
[1725945630725,1.1718,2344.4,2344.3,0.42654]
[1725945630923,3.96674169,2344.4,2344.3,0.42654]
[1725945631131,3.4076925,2344.4,2344.3,0.42654]
[1725945632633,1.1718,2344.4,2344.3,0.42654]
[1725945633826,2.8485186,2344.4,2344.3,0.42654]
[1725945640830,1.6767186,2344.5,2344.4,0.42652]
[1725945641030,2.0659186,2344.5,2344.4,1.65652]
[1725945641338,0.3892,2344.5,2344.3,0.81533]
[1725945641639,2.05826303,2344.4,2344.3,0.42654]
[1725945641831,2.42286303,2344.4,2344.3,0.42654]
[1725945642136,2.42300132,2344.4,2344.3,0.42654]
[1725945642345,0.7464,2344.4,2344.3,0.42654]
[1725945643135,0.7464,2344.4,2344.1,1.1827]